[Event "22nd ECCC Women 2017"]
[Site "Antalya"]
[Date "2017.10.12"]
[Round "3"]
[White "Ozbek, Busra"]
[Black "Sade, Defne"]
[Result "0-1"]
[ECO "D12"]
[WhiteElo "1850"]
[BlackElo "1951"]
[Annotator "NA"]
[PlyCount "140"]
[EventType "team-tourn"]
[EventCountry "TUR"]
[WhiteTeam "Mediterranean"]
[BlackTeam "Aegean"]
[TimeControl "40/5400+30:1800+30"]

1. d4 {[%emt 0:00:30]} d5 {[%emt 0:01:00]} 2. Nf3 {[%emt 0:00:30]} Nf6 {[%emt 0:00:30]} 3. e3 {[%emt 0:00:30]} Bf5 {[%emt 0:00:30]} 4. c4 {[%emt 0:00:00]} c6 {[%emt 0:01:30]} 5. Nc3 {[%emt 0:01:00]} e6 {[%emt 0:00:00]} 6. Nh4 {[%emt 0:07:30]} Bg6 {[%emt 0:03:00]} 7. Nxg6 {[%emt 0:00:30]} hxg6 {[%emt 0:00:30]} 8. Qb3 {[%emt 0:00:30]} Qb6 {[%emt 0:03:30]} 9. g3 {[%emt 0:07:30]} Nbd7 {[%emt 0:00:30]} 10. Bg2 {[%emt 0:00:30]} Qxb3 {[%emt 0:07:30]} 11. axb3 {[%emt 0:00:30]} a6 {[%emt 0:00:30]} 12. Bd2 {[%emt 0:04:30]} O-O-O {[%emt 0:04:30]} 13. O-O {[%emt 0:02:30]} Bd6 {[%emt 0:02:30]} 14. Rac1 {[%emt 0:03:30]} Kb8 {[%emt 0:00:30]} 15. Rfd1 {[%emt 0:08:30]} Bc7 {[%emt 0:08:30]} 16. Be1 {[%emt 0:13:30]} Nb6 {[%emt 0:02:30]} 17. Nb1 {[%emt 0:01:30]} Rd7 {[%emt 0:02:30]} 18. Ba5 {[%emt 0:05:30]} Rhd8 {[%emt 0:04:30]} 19. c5 {[%emt 0:04:30]} Nc8 {[%emt 0:01:30]} 20. Bxc7+ {[%emt 0:00:30]} Kxc7 {[%emt 0:00:00]} 21. Nd2 {[%emt 0:00:30]} Ng8 {[%emt 0:01:00]} 22. Bh3 {[%emt 0:02:30]} f5 {[%emt 0:05:30]} 23. Nf3 {[%emt 0:02:30]} Rf7 {[%emt 0:01:30]} 24. Ne5 {[%emt 0:05:30]} Rf6 {[%emt 0:00:30]} 25. Nf3 {[%emt 0:02:30]} Nh6 {[%emt 0:01:30]} 26. Ng5 {[%emt 0:00:30]} Rh8 {[%emt 0:00:30]} 27. Kg2 {[%emt 0:02:30]} Nf7 {[%emt 0:00:30]} 28. f4 {[%emt 0:06:03]} Nxg5 {[%emt 0:03:30]} 29. fxg5 {[%emt 0:00:03]} Rff8 {[%emt 0:00:30]} 30. g4 {[%emt 0:02:13]} Rh4 {[%emt 0:00:30]} 31. gxf5 {[%emt 0:02:16]} gxf5 {[%emt 0:17:30]} 32. Rf1 {[%emt 0:04:23]} Rfh8 {[%emt 0:00:30]} 33. Rf3 {[%emt 0:00:05]} Ne7 {[%emt 0:00:30]} 34. Rcf1 {[%emt 0:01:24]} Ng6 {[%emt 0:00:30]} 35. R1f2 {[%emt 0:01:13]} R8h5 {[%emt 0:05:30]} 36. b4 {[%emt 0:04:44]} Kd7 {[%emt 0:09:35]} 37. Rf1 {[%emt 0:02:43]} Ke7 {[%emt 0:00:33]} 38. R1f2 {[%emt 0:00:49]} Kf7 {[%emt 0:00:47]} 39. Rg3 {[%emt 0:01:22]} Kg8 {[%emt 0:02:10]} 40. Rf1 {[%emt 0:00:00]} Kh7 {[%emt 0:03:25]} 41. Rff3 {[%emt 0:10:42]} Nh8 {[%emt 0:09:30]} 42. Rf2 {[%emt 0:03:49]} Kg6 {[%emt 0:00:30]} 43. Rf4 {[%emt 0:00:23]} Nf7 {[%emt 0:00:30]} 44. Rxh4 {[%emt 0:02:09]} Rxh4 {[%emt 0:00:30]} 45. Kg1 {[%emt 0:01:16]} Nxg5 {[%emt 0:00:30]} 46. Bf1 {[%emt 0:01:33]} Kf6 {[%emt 0:00:30]} 47. Be2 {[%emt 0:00:52]} Ne4 {[%emt 0:00:30]} 48. Rf3 {[%emt 0:01:06]} g5 {[%emt 0:01:30]} 49. Rf1 {[%emt 0:02:10]} e5 {[%emt 0:05:30]} 50. dxe5+ {[%emt 0:02:01]} Kxe5 {[%emt 0:00:30]} 51. Ra1 {[%emt 0:00:11]} Nd2 {[%emt 0:01:30]} 52. b5 {[%emt 0:03:40]} cxb5 {[%emt 0:01:30]} 53. c6 {[%emt 0:00:38]} bxc6 {[%emt 0:01:30]} 54. Rxa6 {[%emt 0:00:07]} Rb4 {[%emt 0:00:45]} 55. Rxc6 {[%emt 0:00:57]} Rxb2 {[%emt 0:02:38]} 56. Bh5 {[%emt 0:01:18]} Nc4 {[%emt 0:00:19]} 57. Be8 {[%emt 0:01:54]} Nxe3 {[%emt 0:00:40]} 58. Rb6 {[%emt 0:01:10]} b4 {[%emt 0:00:11]} 59. Bc6 {[%emt 0:00:56]} Kd4 {[%emt 0:02:07]} 60. Ba4 {[%emt 0:01:04]} Kd3 {[%emt 0:02:10]} 61. h3 {[%emt 0:01:15]} Ke2 {[%emt 0:00:59]} 62. Bb5+ {[%emt 0:01:03]} Ke1 {[%emt 0:00:32]} 63. Rg6 {[%emt 0:00:26]} Rg2+ {[%emt 0:00:32]} 64. Kh1 {[%emt 0:00:02]} b3 {[%emt 0:03:20]} 65. h4 {[%emt 0:00:43]} b2 {[%emt 0:06:45]} 66. Bd3 {[%emt 0:00:16]} Kf2 {[%emt 0:01:26]} 67. Rxg5 {[%emt 0:01:18]} Rxg5 {[%emt 0:02:14]} 68. hxg5 {[%emt 0:00:05]} d4 {[%emt 0:00:25]} 69. g6 {[%emt 0:00:41]} Nd5 {[%emt 0:00:12]} 70. g7 {[%emt 0:00:43]} Ne7 {[%emt 0:00:06]} 0-1

[Event "22nd ECCC Women 2017"]
[Site "Antalya"]
[Date "2017.10.12"]
[Round "4"]
[White "Voit, Daria"]
[Black "Zaiatz, Elena"]
[Result "1-0"]
[ECO "E08"]
[WhiteElo "2387"]
[BlackElo "2334"]
[Annotator "ChessBase"]
[PlyCount "77"]
[EventType "team-tourn"]
[EventCountry "TUR"]
[SourceTitle "playchess.com"]
[Source "ChessBase"]
[SourceQuality "1"]
[WhiteTeam "Legacy Square Capital"]
[BlackTeam "Bossa Nova"]
[TimeControl "40/5400+30:1800+30"]

1. d4 {[%emt 0:00:30]} Nf6 {[%emt 0:01:00]} 2. Nf3 {[%emt 0:00:00]} d5 {[%emt 0:00:00]} 3. c4 {[%emt 0:01:00]} e6 {[%emt 0:00:00]} 4. g3 {[%emt 0:00:30]} Bb4+ {[%emt 0:00:30]} 5. Bd2 {[%emt 0:00:00]} Be7 {[%emt 0:00:30]} 6. Bg2 {[%emt 0:00:00]} O-O {[%emt 0:00:00]} 7. O-O {[%emt 0:00:00]} c6 {[%emt 0:00:00]} 8. Qc2 {[%emt 0:00:00]} b6 {[%emt 0:00:30]} 9. Rd1 {[%emt 0:02:30]} Bb7 {[%emt 0:03:30]} 10. Bf4 {[%emt 0:00:30]} Nbd7 {[%emt 0:00:30]} 11. Ne5 {[%emt 0:14:30]} Rc8 {[%emt 0:10:30]} 12. Nc3 {[%emt 0:00:30]} Nxe5 {[%emt 0:04:30]} 13. dxe5 {[%emt 0:00:30]} Nd7 {[%emt 0:00:30]} 14. cxd5 {[%emt 0:00:00]} cxd5 {[%emt 0:20:30]} 15. e4 {[%emt 0:00:00]} d4 {[%emt 0:00:30]} 16. Rxd4 {[%emt 0:00:30]} Qc7 {[%emt 0:00:00]} 17. Qa4 {[%emt 0:44:30]} Bc6 {[%emt 0:02:00]} 18. Qa6 {[%emt 0:09:30]} Nc5 {[%emt 0:32:30]} 19. Qe2 {[%emt 0:00:30]} g5 {[%emt 0:00:30]} 20. Qg4 {[%emt 0:13:08]} Kh8 {[%emt 0:00:30]} 21. Be3 {[%emt 0:03:46]} Qxe5 {[%emt 0:01:30]} 22. Rad1 {[%emt 0:00:12]} Qg7 {[%emt 0:02:48]} 23. e5 {[%emt 0:03:06]} Bxg2 {[%emt 0:02:10]} 24. Kxg2 {[%emt 0:00:30]} Qg6 {[%emt 0:00:00]} 25. b4 {[%emt 0:00:37]} Na6 {[%emt 0:02:36]} 26. Rd7 {[%emt 0:02:34]} Bxb4 {[%emt 0:06:38]} 27. Ne4 {[%emt 0:00:12]} h5 {[%emt 0:00:49]} 28. Qf3 {[%emt 0:00:02]} Nb8 {[%emt 0:07:24]} 29. Rb7 {[%emt 0:02:07]} g4 {[%emt 0:01:23]} 30. Qf6+ {[%emt 0:00:38]} Qxf6 {[%emt 0:00:10]} 31. Nxf6 {[%emt 0:00:36]} Kg7 {[%emt 0:00:35]} 32. Nxh5+ {[%emt 0:00:40]} Kg6 {[%emt 0:00:30]} 33. Nf6 {[%emt 0:00:22]} Kf5 {[%emt 0:01:02]} 34. Nxg4 {[%emt 0:01:50]} Nc6 {[%emt 0:01:00]} 35. h3 {[%emt 0:00:18]} Bc5 {[%emt 0:00:30]} 36. Bh6 {[%emt 0:00:30]} Rfd8 {[%emt 0:00:30]} 37. Rxf7+ {[%emt 0:00:30]} Kg6 {[%emt 0:00:30]} 38. Rg7+ {[%emt 0:00:30]} Kf5 {[%emt 0:00:30]} 39. Rg5+ {[%emt 0:00:30]} 1-0

[Event "22nd ECCC Women 2017"]
[Site "Antalya"]
[Date "2017.10.11"]
[Round "4"]
[White "Kovanova, Baira"]
[Black "Dragomirescu, Angela"]
[Result "1/2-1/2"]
[ECO "B07"]
[WhiteElo "2371"]
[BlackElo "2231"]
[Annotator "ChessBase"]
[PlyCount "107"]
[EventType "team-tourn"]
[EventCountry "TUR"]
[SourceTitle "playchess.com"]
[Source "ChessBase"]
[SourceQuality "1"]
[WhiteTeam "UGRA"]
[BlackTeam "Timisoara"]
[TimeControl "40/5400+30:1800+30"]

1. e4 d6 2. d4 Nf6 3. Nc3 g6 {[%emt 0:01:00]} 4. Be3 {[%emt 0:00:00]} a6 {[%emt 0:03:30]} 5. Qd2 {[%emt 0:01:30]} b5 {[%emt 0:02:30]} 6. Bd3 {[%emt 0:00:30]} Bb7 {[%emt 0:01:30]} 7. Nf3 {[%emt 0:01:30]} b4 {[%emt 0:06:30]} 8. Ne2 {[%emt 0:02:30]} Nxe4 {[%emt 0:00:30]} 9. Qxb4 {[%emt 0:01:30]} Qc8 {[%emt 0:01:30]} 10. d5 {[%emt 0:11:30]} Nf6 {[%emt 0:00:30]} 11. c4 {[%emt 0:01:30]} Bg7 {[%emt 0:04:30]} 12. Qd2 {[%emt 0:03:30]} c6 {[%emt 0:02:30]} 13. dxc6 {[%emt 0:02:30]} Nxc6 {[%emt 0:00:30]} 14. O-O {[%emt 0:04:30]} O-O {[%emt 0:06:30]} 15. h3 {[%emt 0:08:30]} Ne5 {[%emt 0:17:30]} 16. Nxe5 {[%emt 0:04:30]} dxe5 {[%emt 0:00:30]} 17. Nc3 {[%emt 0:01:30]} Rd8 {[%emt 0:03:30]} 18. Qc2 {[%emt 0:00:30]} Qe6 {[%emt 0:12:30]} 19. Rfe1 {[%emt 0:02:30]} Rac8 {[%emt 0:02:30]} 20. Bf1 {[%emt 0:01:30]} Nh5 {[%emt 0:01:30]} 21. Na4 {[%emt 0:09:30]} Qc6 {[%emt 0:11:56]} 22. Nb6 {[%emt 0:08:30]} Rb8 {[%emt 0:00:49]} 23. Rac1 {[%emt 0:03:30]} e6 {[%emt 0:01:24]} 24. b4 {[%emt 0:06:30]} Nf4 {[%emt 0:01:43]} 25. f3 {[%emt 0:00:30]} Rd4 {[%emt 0:01:03]} 26. Bxd4 {[%emt 0:05:54]} exd4 {[%emt 0:00:01]} 27. c5 {[%emt 0:00:25]} d3 {[%emt 0:12:51]} 28. Bxd3 {[%emt 0:02:44]} Nxh3+ {[%emt 0:00:19]} 29. Kh1 {[%emt 0:05:43]} Ng5 {[%emt 0:03:11]} 30. Be4 {[%emt 0:05:10]} Nxe4 {[%emt 0:00:13]} 31. Qxe4 {[%emt 0:00:13]} Qc7 {[%emt 0:01:05]} 32. c6 {[%emt 0:03:27]} Qxb6 {[%emt 0:01:09]} 33. cxb7 {[%emt 0:00:05]} Rxb7 {[%emt 0:00:53]} 34. Rc8+ {[%emt 0:01:14]} Bf8 {[%emt 0:00:01]} 35. Rd1 {[%emt 0:01:04]} Rb8 {[%emt 0:00:22]} 36. Rxb8 {[%emt 0:01:12]} Qxb8 {[%emt 0:00:30]} 37. a3 {[%emt 0:00:30]} h5 {[%emt 0:00:30]} 38. Qh4 {[%emt 0:00:30]} Qe5 {[%emt 0:00:30]} 39. Qd4 {[%emt 0:00:30]} Qg3 {[%emt 0:00:30]} 40. f4 {[%emt 0:00:30]} h4 {[%emt 0:01:00]} 41. Rd3 {[%emt 0:06:49]} Qg4 {[%emt 0:06:30]} 42. Qf6 {[%emt 0:01:30]} Qe2 {[%emt 0:06:31]} 43. Rh3 {[%emt 0:01:30]} Be7 {[%emt 0:00:27]} 44. Qe5 {[%emt 0:12:40]} Qd1+ {[%emt 0:00:33]} 45. Kh2 {[%emt 0:00:02]} g5 {[%emt 0:07:22]} 46. Rc3 {[%emt 0:02:19]} Qd8 {[%emt 0:00:05]} 47. Rc6 {[%emt 0:03:29]} gxf4 {[%emt 0:07:09]} 48. Qxf4 {[%emt 0:01:31]} Bg5 {[%emt 0:01:53]} 49. Qe5 {[%emt 0:01:28]} Bf6 {[%emt 0:00:46]} 50. Qc5 {[%emt 0:02:16]} Qb8+ {[%emt 0:02:21]} 51. Kh1 {[%emt 0:00:11]} Qf4 {[%emt 0:01:56]} 52. Qc1 {[%emt 0:03:51]} Qg3 {[%emt 0:00:33]} 53. Rc8+ {[%emt 0:01:03]} Kg7 {[%emt 0:00:07]} 54. Rc5 {[%emt 0:00:00]} 1/2-1/2

[Event "22nd ECCC Women 2017"]
[Site "Antalya"]
[Date "2017.10.12"]
[Round "4"]
[White "Yildiz, Betul Cemre"]
[Black "Fataliyeva, Ulviyya"]
[Result "0-1"]
[ECO "E12"]
[WhiteElo "2350"]
[BlackElo "2348"]
[Annotator "ChessBase"]
[PlyCount "94"]
[EventType "team-tourn"]
[EventCountry "TUR"]
[SourceTitle "playchess.com"]
[Source "ChessBase"]
[SourceQuality "1"]
[WhiteTeam "Anatolia"]
[BlackTeam "Odlar Yurdu"]
[TimeControl "40/5400+30:1800+30"]

1. d4 {[%emt 0:00:30]} e6 {[%emt 0:01:00]} 2. c4 {[%emt 0:00:30]} Nf6 {[%emt 0:00:30]} 3. Nf3 {[%emt 0:00:00]} b6 {[%emt 0:00:00]} 4. Nc3 {[%emt 0:02:00]} Bb7 {[%emt 0:00:00]} 5. a3 {[%emt 0:00:30]} Be7 {[%emt 0:01:30]} 6. d5 {[%emt 0:02:30]} O-O {[%emt 0:06:30]} 7. g3 {[%emt 0:01:30]} exd5 {[%emt 0:17:30]} 8. cxd5 {[%emt 0:00:30]} b5 {[%emt 0:00:30]} 9. Bg2 {[%emt 0:11:30]} b4 {[%emt 0:14:30]} 10. axb4 {[%emt 0:01:30]} Bxb4 {[%emt 0:00:00]} 11. Nh4 {[%emt 0:00:30]} d6 {[%emt 0:13:00]} 12. O-O {[%emt 0:01:30]} Re8 {[%emt 0:00:30]} 13. Be3 {[%emt 0:16:30]} Rxe3 {[%emt 0:08:30]} 14. fxe3 {[%emt 0:01:30]} Bc5 {[%emt 0:00:30]} 15. Nf5 {[%emt 0:02:30]} g6 {[%emt 0:00:30]} 16. Nd4 {[%emt 0:03:30]} Qe7 {[%emt 0:03:30]} 17. Qd2 {[%emt 0:05:30]} Ng4 {[%emt 0:07:30]} 18. e4 {[%emt 0:07:30]} Nd7 {[%emt 0:03:30]} 19. Rf4 {[%emt 0:12:30]} Nge5 {[%emt 0:05:28]} 20. Na4 {[%emt 0:01:30]} Qd8 {[%emt 0:08:36]} 21. Nxc5 {[%emt 0:03:30]} Nxc5 {[%emt 0:00:36]} 22. b4 {[%emt 0:03:30]} Ncd7 {[%emt 0:00:03]} 23. Nf3 {[%emt 0:00:33]} Qb8 {[%emt 0:02:15]} 24. Nxe5 {[%emt 0:10:30]} Nxe5 {[%emt 0:00:08]} 25. Rff1 {[%emt 0:00:20]} Bc8 {[%emt 0:00:07]} 26. Qd4 {[%emt 0:00:00]} Bd7 {[%emt 0:01:49]} 27. Rfc1 {[%emt 0:01:59]} a6 {[%emt 0:00:22]} 28. Bf1 {[%emt 0:07:10]} Ra7 {[%emt 0:00:07]} 29. Kg2 {[%emt 0:00:19]} h5 {[%emt 0:00:10]} 30. e3 {[%emt 0:02:19]} Bc8 {[%emt 0:04:57]} 31. b5 {[%emt 0:01:11]} a5 {[%emt 0:00:18]} 32. Ra4 {[%emt 0:00:00]} Bd7 {[%emt 0:00:30]} 33. Ra2 {[%emt 0:00:33]} h4 {[%emt 0:00:24]} 34. h3 {[%emt 0:00:33]} Rb7 {[%emt 0:01:09]} 35. Rxa5 {[%emt 0:00:23]} Bxh3+ {[%emt 0:00:50]} 36. Kh1 {[%emt 0:00:10]} Bxf1 {[%emt 0:00:40]} 37. Rxf1 {[%emt 0:00:30]} Qc8 {[%emt 0:00:30]} 38. Kh2 {[%emt 0:00:30]} hxg3+ {[%emt 0:00:30]} 39. Kg2 {[%emt 0:00:30]} Qg4 {[%emt 0:00:06]} 40. Ra8+ {[%emt 0:00:00]} Kg7 {[%emt 0:01:25]} 41. Ra2 {[%emt 0:06:00]} Rxb5 {[%emt 0:02:30]} 42. Rf4 {[%emt 0:01:30]} Qh5 {[%emt 0:03:30]} 43. Kxg3 {[%emt 0:01:30]} g5 {[%emt 0:15:54]} 44. Rf5 {[%emt 0:02:30]} Qh4+ {[%emt 0:03:22]} 45. Kg2 {[%emt 0:00:30]} Rb1 {[%emt 0:00:22]} 46. Rxe5 {[%emt 0:05:16]} Qh1+ {[%emt 0:00:38]} 47. Kf2 {[%emt 0:01:01]} Qh2+ {[%emt 0:00:10]} 0-1

[Event "22nd ECCC Women 2017"]
[Site "Antalya"]
[Date "2017.10.11"]
[Round "4"]
[White "Balajayeva, Khanim"]
[Black "Isgandarova, Khayala"]
[Result "1-0"]
[ECO "C14"]
[WhiteElo "2319"]
[BlackElo "2242"]
[Annotator "NA"]
[PlyCount "87"]
[EventType "team-tourn"]
[EventCountry "TUR"]
[SourceTitle "playchess.com"]
[Source "ChessBase"]
[SourceQuality "1"]
[WhiteTeam "Odlar Yurdu"]
[BlackTeam "Anatolia"]
[TimeControl "40/5400+30:1800+30"]

1. e4 {[%emt 0:00:30]} e6 {[%emt 0:01:00]} 2. d4 {[%emt 0:00:00]} d5 {[%emt 0:00:30]} 3. Nc3 {[%emt 0:00:00]} Nf6 {[%emt 0:00:30]} 4. Bg5 {[%emt 0:00:30]} Be7 {[%emt 0:00:00]} 5. e5 {[%emt 0:00:00]} Nfd7 {[%emt 0:00:00]} 6. Bxe7 {[%emt 0:00:00]} Qxe7 {[%emt 0:00:00]} 7. f4 {[%emt 0:00:30] LiveBook: 1399 Partien} a6 {[%emt 0:00:00]} 8. Nf3 {[%emt 0:00:30]} c5 {[%emt 0:00:30]} 9. Qd2 {[%emt 0:00:00]} Nc6 {[%emt 0:00:00]} 10. dxc5 {[%emt 0:00:00]} Qxc5 {[%emt 0:01:00]} 11. Bd3 {[%emt 0:00:30]} b5 {[%emt 0:00:00]} 12. a3 {[%emt 0:00:30]} Nb6 {[%emt 0:10:00] C14: French: Classical System: 4 Bg5 Be7 main line} (12... O-O 13. Qf2 Ra7 14. Qxc5 Nxc5 15. Kd2 f5 16. Ne2 h6 17. Rhg1 g5 18. g4 Ne4+ 19. Ke3 Rg7 20. gxf5 {1-0 (66) Robson,R (2620)-Akobian,V (2616) Wheeling 2013}) 13. b4 {[%emt 0:00:30]} Qe7 {[%emt 0:01:30]} 14. Qf2 {[%emt 0:00:30]} Nc4 $146 {[%emt 0:09:30]} ({Predecessor:} 14... Rb8 15. O-O Nc4 16. Ne2 Bd7 17. Ned4 Nxd4 18. Nxd4 O-O 19. Qg3 f5 20. Qf2 {1-0 (39) Daulyte,D (2419)-Isgandarova,K (2257) Kocaeli 2017}) 15. Bxc4 {[%emt 0:07:30]} dxc4 {[%emt 0:04:30]} 16. Ne4 {[%emt 0:08:30]} O-O {[%emt 0:00:00]} 17. O-O {[%emt 0:04:30]} Qa7 {[%emt 0:09:00]} 18. c3 {[%emt 0:03:30]} Qxf2+ {[%emt 0:11:30]} 19. Kxf2 {[%emt 0:01:30]} a5 $18 {[%emt 0:02:30]} (19... Ne7 $16) 20. Nd6 {[%emt 0:20:30]} Bd7 {[%emt 0:02:30]} 21. Rfd1 {[%emt 0:11:30]} axb4 {[%emt 0:10:30]} 22. axb4 {[%emt 0:00:30]} Ne7 {[%emt 0:00:30]} 23. Rxa8 {[%emt 0:23:56]} Rxa8 {[%emt 0:00:30]} 24. Nxc4 {[%emt 0:00:46]} Nd5 {[%emt 0:01:30]} 25. Ne3 {[%emt 0:01:37]} Ra2+ {[%emt 0:00:30]} 26. Kg3 {[%emt 0:02:07]} Nxe3 {[%emt 0:11:30]} 27. Rxd7 {[%emt 0:00:03]} h6 {[%emt 0:05:06]} 28. Nd4 {[%emt 0:03:18]} Nxg2 {[%emt 0:04:40]} 29. Nxb5 {[%emt 0:01:28]} Ne1 {[%emt 0:04:01]} 30. Nd6 {[%emt 0:02:38]} Rg2+ {[%emt 0:00:49]} 31. Kh3 {[%emt 0:00:04]} Rf2 {[%emt 0:00:45]} 32. Nxf7 {[%emt 0:02:19]} Rxf4 {[%emt 0:03:23]} 33. Nd8 {[%emt 0:00:05]} g5 {[%emt 0:05:34]} 34. Nxe6 {[%emt 0:01:53]} Re4 {[%emt 0:00:09]} 35. Rg7+ {[%emt 0:00:46]} Kh8 {[%emt 0:00:04]} 36. Rg6 {[%emt 0:01:56]} Rh4+ {[%emt 0:04:08]} 37. Kg3 {[%emt 0:00:30]} Nd3 {[%emt 0:00:00]} 38. b5 {[%emt 0:01:10]} Nxe5 {[%emt 0:00:20]} 39. b6 {[%emt 0:00:14]} Nd7 {[%emt 0:00:26]} 40. Nd4 {[%emt 0:00:50]} Re4 {[%emt 0:01:35]} 41. Rd6 {[%emt 0:10:50]} Nc5 {[%emt 0:02:30]} 42. Rc6 {[%emt 0:01:30]} Nd7 {[%emt 0:21:27]} 43. Rc8+ {[%emt 0:00:30]} Kg7 {[%emt 0:00:08]} 44. Rc7 {[%emt 0:00:30]} 1-0

[Event "22nd ECCC Women 2017"]
[Site "Antalya"]
[Date "2017.10.11"]
[Round "4"]
[White "Klinova, Masha"]
[Black "Ince, Safiye Oyku"]
[Result "1-0"]
[ECO "B40"]
[WhiteElo "2289"]
[BlackElo "1861"]
[Annotator "NA"]
[PlyCount "97"]
[EventType "team-tourn"]
[EventCountry "TUR"]
[SourceTitle "playchess.com"]
[Source "ChessBase"]
[SourceQuality "1"]
[WhiteTeam "Beer Sheva"]
[BlackTeam "Mediterranean"]
[TimeControl "40/5400+30:1800+30"]

1. e4 c5 2. Nf3 e6 3. c4 Nc6 4. Nc3 Nd4 {[%emt 0:00:30]} 5. d3 {[%emt 0:00:30]} Ne7 {[%emt 0:00:30]} 6. Nxd4 {[%emt 0:05:30]} cxd4 {[%emt 0:00:30]} 7. Ne2 {[%emt 0:00:30]} Qb6 {[%emt 0:00:30]} 8. g3 {[%emt 0:00:30]} d5 {[%emt 0:03:30]} 9. exd5 {[%emt 0:07:30]} exd5 {[%emt 0:01:30]} 10. Bg2 {[%emt 0:00:30]} Be6 {[%emt 0:13:30]} 11. O-O {[%emt 0:10:30]} dxc4 {[%emt 0:04:30]} 12. dxc4 {[%emt 0:03:30]} Nc6 $18 {[%emt 0:00:30]} 13. b3 {[%emt 0:07:30]} Be7 {[%emt 0:02:30]} 14. Nf4 {[%emt 0:02:30]} O-O {[%emt 0:02:30]} 15. Nd5 {[%emt 0:09:30]} Bxd5 {[%emt 0:03:30]} 16. cxd5 {[%emt 0:01:30]} Nb4 {[%emt 0:00:30]} 17. a3 {[%emt 0:00:30]} Na6 {[%emt 0:00:30]} 18. Bb2 {[%emt 0:00:30]} Bf6 {[%emt 0:00:30]} 19. Rc1 {[%emt 0:04:30]} Rac8 {[%emt 0:04:30]} 20. b4 {[%emt 0:01:30]} Nc7 {[%emt 0:03:30]} 21. Qd3 {[%emt 0:16:30]} Nb5 {[%emt 0:00:30]} 22. Rxc8 {[%emt 0:02:30]} Rxc8 {[%emt 0:00:30]} 23. Re1 {[%emt 0:00:00]} g6 {[%emt 0:04:30]} 24. h4 {[%emt 0:00:00]} Nc3 {[%emt 0:02:30]} 25. h5 {[%emt 0:03:30]} Qd6 {[%emt 0:05:30]} 26. h6 {[%emt 0:02:30]} Qf8 {[%emt 0:06:30]} 27. Bc1 {[%emt 0:01:55]} Re8 {[%emt 0:03:30]} 28. Rxe8 {[%emt 0:05:14]} Qxe8 {[%emt 0:01:30]} 29. Bd2 {[%emt 0:00:35]} Qe2 {[%emt 0:00:30]} 30. Qxe2 {[%emt 0:02:53]} Nxe2+ {[%emt 0:00:30]} 31. Kf1 {[%emt 0:00:22]} Nc3 {[%emt 0:00:00]} 32. d6 {[%emt 0:00:44]} b6 {[%emt 0:01:00]} 33. Bc6 {[%emt 0:00:29]} Bd8 {[%emt 0:01:30]} 34. b5 {[%emt 0:06:36]} g5 {[%emt 0:01:30]} 35. f4 {[%emt 0:00:49]} gxf4 {[%emt 0:08:30]} 36. Bxf4 {[%emt 0:01:33]} Nb1 {[%emt 0:01:30]} 37. Ke2 {[%emt 0:00:24]} Bf6 {[%emt 0:07:00]} 38. Kd3 {[%emt 0:00:21]} Nxa3 {[%emt 0:00:33]} 39. d7 {[%emt 0:00:33]} Bd8 {[%emt 0:02:06]} 40. Kxd4 {[%emt 0:00:00]} f6 {[%emt 0:05:21]} 41. Kc3 {[%emt 0:05:02]} f5 {[%emt 0:02:30]} 42. Kb3 {[%emt 0:01:30]} Nxb5 {[%emt 0:00:30]} 43. Bxb5 {[%emt 0:00:30]} Kf7 {[%emt 0:00:30]} 44. Kc4 {[%emt 0:00:30]} Ke6 {[%emt 0:00:30]} 45. Bb8 {[%emt 0:01:30]} a6 {[%emt 0:00:30]} 46. Bxa6 {[%emt 0:03:30]} Kxd7 {[%emt 0:00:30]} 47. Kd5 {[%emt 0:00:30]} Bf6 {[%emt 0:00:30]} 48. Bd3 {[%emt 0:00:30]} Kc8 {[%emt 0:00:30]} 49. Bf4 {[%emt 0:00:00]} 1-0

[Event "22nd ECCC Women 2017"]
[Site "Antalya"]
[Date "2017.10.12"]
[Round "4"]
[White "Stetsko, Lanita"]
[Black "Savina, Anastasia"]
[Result "0-1"]
[ECO "B45"]
[WhiteElo "2254"]
[BlackElo "2350"]
[Annotator "ChessBase"]
[PlyCount "92"]
[EventType "team-tourn"]
[EventCountry "TUR"]
[SourceTitle "playchess.com"]
[Source "ChessBase"]
[SourceQuality "1"]
[WhiteTeam "Bossa Nova"]
[BlackTeam "Legacy Square Capital"]
[TimeControl "40/5400+30:1800+30"]

1. e4 {[%emt 0:00:30]} c5 {[%emt 0:01:00]} 2. Nc3 {[%emt 0:00:00]} Nc6 {[%emt 0:02:30]} 3. Nge2 {[%emt 0:00:00]} Nf6 {[%emt 0:07:30]} 4. d4 {[%emt 0:01:30]} cxd4 {[%emt 0:00:30]} 5. Nxd4 {[%emt 0:00:00]} e6 {[%emt 0:00:30]} 6. Nxc6 {[%emt 0:00:00]} bxc6 {[%emt 0:00:30]} 7. e5 {[%emt 0:00:30]} Nd5 {[%emt 0:00:00]} 8. Ne4 {[%emt 0:00:00]} Qc7 {[%emt 0:00:00]} 9. f4 {[%emt 0:00:00]} Qb6 {[%emt 0:00:30]} 10. c4 {[%emt 0:00:00]} Ne3 {[%emt 0:01:30]} 11. Qd3 {[%emt 0:00:00]} Nf5 {[%emt 0:02:30]} 12. Bd2 {[%emt 0:04:30]} c5 {[%emt 0:08:30]} 13. Bc3 {[%emt 0:09:30]} Bb7 {[%emt 0:04:30]} 14. O-O-O {[%emt 0:05:30]} Rd8 {[%emt 0:11:30]} 15. Ng3 {[%emt 0:13:30]} Nd4 {[%emt 0:08:30]} 16. Bxd4 {[%emt 0:14:30]} cxd4 {[%emt 0:00:30]} 17. Qxd4 {[%emt 0:00:30]} Qxd4 {[%emt 0:14:30]} 18. Rxd4 {[%emt 0:00:30]} Bc5 {[%emt 0:00:30]} 19. Rd3 {[%emt 0:01:30]} O-O {[%emt 0:17:25]} 20. Be2 {[%emt 0:15:30]} d5 {[%emt 0:07:39]} 21. Nh5 {[%emt 0:08:30]} dxc4 {[%emt 0:05:45]} 22. Rg3 {[%emt 0:01:30]} Kh8 {[%emt 0:01:59]} 23. Rf1 {[%emt 0:07:06]} Be4 {[%emt 0:01:04]} 24. Rd1 {[%emt 0:07:16]} Bg6 {[%emt 0:02:34]} 25. Rxd8 {[%emt 0:09:19]} Rxd8 {[%emt 0:00:01]} 26. Rh3 {[%emt 0:00:20]} Bb4 {[%emt 0:00:57]} 27. Bxc4 {[%emt 0:00:34]} Bd2+ {[%emt 0:00:38]} 28. Kd1 {[%emt 0:00:02]} Bxf4+ {[%emt 0:00:15]} 29. Ke1 {[%emt 0:00:39]} Bxe5 {[%emt 0:00:35]} 30. b3 {[%emt 0:00:10]} Bf5 {[%emt 0:00:35]} 31. Re3 {[%emt 0:00:30]} Bxh2 {[%emt 0:00:28]} 32. Ng3 {[%emt 0:00:51]} Bg4 {[%emt 0:00:57]} 33. Ne2 {[%emt 0:00:05]} Bc7 {[%emt 0:00:00]} 34. b4 {[%emt 0:00:43]} h5 {[%emt 0:00:28]} 35. a4 {[%emt 0:00:26]} a5 {[%emt 0:00:48]} 36. b5 {[%emt 0:00:09]} Bd6 {[%emt 0:00:19]} 37. Rd3 {[%emt 0:00:28]} Bb4+ {[%emt 0:00:07]} 38. Kd1 {[%emt 0:00:48]} Rc8 {[%emt 0:00:17]} 39. Bb3 {[%emt 0:01:28]} e5 {[%emt 0:01:05]} 40. Bxf7 {[%emt 0:00:00]} Bf5 {[%emt 0:01:04]} 41. Rd2 {[%emt 0:01:36]} Bxd2 {[%emt 0:03:30]} 42. Kxd2 {[%emt 0:00:30]} Rd8+ {[%emt 0:00:30]} 43. Kc3 {[%emt 0:01:30]} h4 {[%emt 0:00:30]} 44. b6 {[%emt 0:09:30]} Be4 {[%emt 0:03:30]} 45. Be6 {[%emt 0:02:07]} Bxg2 {[%emt 0:02:30]} 46. Kc4 {[%emt 0:00:03]} Rd6 {[%emt 0:01:30]} 0-1